fUST/lending_fUST_20240213
["ID","MTS","AMOUNT","RATE_DAILY","PERIOD"]
[313864720,1707756645714,-169.4204325,0.000225,2]
[313864722,1707756645723,-3787.05,0.00022554,2]
[313864724,1707756645733,-368.11446479,0.00022554,2]
[313864726,1707756645742,-2477.88,0.00022554,2]
[313864728,1707756645752,-5340.07,0.00022554,2]
[313864730,1707756645761,-153.0,0.00022603,2]
[313864732,1707756645775,-50000.0,0.00022632,2]
[313864734,1707756645785,-151.0,0.00022642,2]
[313864736,1707756645797,-500.0,0.00022739,2]
[313864738,1707756645805,-566.56,0.00022739,2]
[313864740,1707756645816,-1016.86,0.00022739,2]
[313864742,1707756645825,-1774.88,0.00022739,2]
[313864744,1707756645834,-641.18,0.00022739,2]
[313864746,1707756645844,-500.0,0.00022739,2]
[313864748,1707756645853,-151.0,0.00022739,2]
[313864750,1707756645862,-628.66,0.00022739,2]
[313864752,1707756645871,-525.43,0.00022739,2]
[313864754,1707756645880,-586.42,0.00022739,2]
[313864756,1707756645889,-4488.07,0.00022739,2]
[313864758,1707756645898,-3094.92,0.00022739,2]
[313864760,1707756645907,-500.0,0.00022739,2]
[313864762,1707756645917,-595.43,0.00022739,2]
[313864764,1707756645926,-831.65,0.00022739,2]
[313864766,1707756645935,-551.73,0.00022739,2]
[313864767,1707756645945,-1646.93,0.00022739,2]
[313864769,1707756645954,-1087.02,0.00022739,2]
[313864771,1707756645963,-2544.65,0.00022739,2]
[313864773,1707756645972,-755.32,0.00022739,2]
[313864775,1707756645982,-1022.1,0.00022739,2]
[313864777,1707756645991,-3787.05,0.00022828,2]
[313864779,1707756646000,-2477.88,0.00022828,2]
[313864781,1707756646010,-5340.07,0.00022828,2]
[313864784,1707756646020,-5000.0,0.00022956,2]
[313864785,1707756646029,-5000.0,0.00022956,2]
[313864787,1707756646038,-5000.0,0.00022956,2]
[313864789,1707756646049,-5000.0,0.00022956,2]
[313864791,1707756646059,-5000.0,0.00022956,2]
[313864793,1707756646068,-1000.0,0.00022975,2]
[313864795,1707756646077,-19149.15978606,0.00023,2]
[313864797,1707756646087,-1000.0,0.00023,23]
[313864799,1707756646096,-2426.51326535,0.00023,2]
[313864801,1707756646105,-1020.56416087,0.00023011,2]
[313864803,1707756646114,-500.0,0.00023013,2]
[313864805,1707756646123,-566.56,0.00023013,2]
[313864807,1707756646132,-1016.86,0.00023013,2]
[313864809,1707756646142,-1774.88,0.00023013,2]
[313864811,1707756646152,-641.18,0.00023013,2]
[313864813,1707756646162,-500.0,0.00023013,2]
[313864815,1707756646172,-628.66,0.00023013,2]
[313864817,1707756646184,-525.43,0.00023013,2]
[313864819,1707756646195,-586.42,0.00023013,2]
[313864821,1707756646205,-361.398449,0.00023013,2]
[313864823,1707756646215,-361.398449,0.00023013,2]
[313864825,1707756646226,-4488.07,0.00023013,2]
[313864826,1707756646235,-3094.92,0.00023013,2]
[313864828,1707756646245,-500.0,0.00023013,2]
[313864830,1707756646254,-595.43,0.00023013,2]
[313864832,1707756646263,-831.65,0.00023013,2]
[313864834,1707756646272,-551.73,0.00023013,2]
[313864836,1707756646282,-1646.93,0.00023013,2]
[313864838,1707756646291,-1087.02,0.00023013,2]
[313864840,1707756646303,-2544.65,0.00023013,2]
[313864842,1707756646313,-755.32,0.00023013,2]
[313864844,1707756646322,-1022.1,0.00023013,2]
[313864846,1707756646332,-151.0,0.00023028,2]
[313864848,1707756646341,-3787.05,0.00023102,2]
[313864850,1707756646350,-2477.88,0.00023102,2]
[313864852,1707756646359,-5340.07,0.00023102,2]
[313864854,1707756646368,-396.0,0.000232,10]
[313864855,1707756646378,-504.48,0.00023287,2]
[313864857,1707756646387,-566.56,0.00023287,2]
[313864859,1707756646396,-1016.86,0.00023287,2]
[313864861,1707756646406,-1774.88,0.00023287,2]
[313864863,1707756646415,-641.18,0.00023287,2]
[313864865,1707756646424,-500.0,0.00023287,2]
[313864867,1707756646433,-628.66,0.00023287,2]
[313864869,1707756646443,-525.43,0.00023287,2]
[313864871,1707756646452,-586.42,0.00023287,2]
[313864873,1707756646461,-4488.07,0.00023287,2]
[313864875,1707756646470,-3094.92,0.00023287,2]
[313864877,1707756646479,-500.0,0.00023287,2]
[313864879,1707756646488,-595.43,0.00023287,2]
[313864881,1707756646497,-831.65,0.00023287,2]
[313864883,1707756646506,-551.73,0.00023287,2]
[313864884,1707756646515,-1646.93,0.00023287,2]
[313864886,1707756646524,-1087.02,0.00023287,2]
[313864888,1707756646533,-2544.65,0.00023287,2]
[313864890,1707756646544,-755.32,0.00023287,2]
[313864892,1707756646553,-1022.1,0.00023287,2]
[313864894,1707756646562,-3787.05,0.00023376,2]
[313864895,1707756646571,-2477.88,0.00023376,2]
[313864896,1707756646580,-5340.07,0.00023376,2]
[313864897,1707756646590,-151.0,0.00023415,2]
[313864898,1707756646599,-1000.0,0.000235,2]
[313864899,1707756646609,-566.56,0.00023561,2]
[313864900,1707756646618,-1016.86,0.00023561,2]
[313864901,1707756646627,-1774.88,0.00023561,2]
[313864902,1707756646636,-641.18,0.00023561,2]
[313864903,1707756646646,-500.0,0.00023561,2]
[313864904,1707756646655,-628.66,0.00023561,2]
[313864905,1707756646664,-525.43,0.00023561,2]
[313864906,1707756646673,-586.42,0.00023561,2]
[313864907,1707756646682,-4488.07,0.00023561,2]
[313864908,1707756646692,-3094.92,0.00023561,2]
[313864909,1707756646702,-500.0,0.00023561,2]
[313864910,1707756646711,-595.43,0.00023561,2]
[313864911,1707756646721,-831.65,0.00023561,2]
[313864912,1707756646730,-551.73,0.00023561,2]
[313864913,1707756646739,-1646.93,0.00023561,2]
[313864914,1707756646751,-1087.02,0.00023561,2]
[313864915,1707756646765,-2544.65,0.00023561,2]
[313864916,1707756646775,-755.32,0.00023561,2]
[313864917,1707756646784,-1022.1,0.00023561,2]
[313864919,1707756646793,-50000.0,0.00023563,2]
[313864921,1707756646804,-151.0,0.00023563,2]
[313864923,1707756646814,-3787.05,0.0002365,2]
[313864925,1707756646823,-2477.88,0.0002365,2]
[313864927,1707756646833,-5340.07,0.0002365,2]
[313864929,1707756646843,-1250.0,0.0002366,2]
[313864931,1707756646853,-151.0,0.00023801,2]
[313864933,1707756646863,-566.56,0.00023835,2]
[313864935,1707756646872,-1016.86,0.00023835,2]
[313864936,1707756646881,-1774.88,0.00023835,2]
[313864938,1707756646890,-641.18,0.00023835,2]
[313864940,1707756646899,-500.0,0.00023835,2]
[313864942,1707756646908,-628.66,0.00023835,2]
[313864944,1707756646917,-525.43,0.00023835,2]
[313864946,1707756646927,-586.42,0.00023835,2]
[313864948,1707756646937,-361.398449,0.00023835,2]
[313864950,1707756646946,-361.398449,0.00023835,2]
[313864952,1707756646956,-4488.07,0.00023835,2]
[313864954,1707756646966,-3094.92,0.00023835,2]
[313864956,1707756646975,-500.0,0.00023835,2]
[313864958,1707756646986,-595.43,0.00023835,2]
[313864960,1707756646995,-831.65,0.00023835,2]
[313864962,1707756647004,-551.73,0.00023835,2]
[313864964,1707756647014,-1646.93,0.00023835,2]
[313864966,1707756647023,-1087.02,0.00023835,2]
[313864968,1707756647032,-2544.65,0.00023835,2]
[313864970,1707756647042,-755.32,0.00023835,2]
[313864972,1707756647053,-1022.1,0.00023835,2]
[313864974,1707756647062,-622.27908863,0.000239,2]
[313864976,1707756647071,-3787.05,0.00023924,2]
[313864978,1707756647080,-2477.88,0.00023924,2]
[313864980,1707756647089,-5340.07,0.00023924,2]
[313864982,1707756647098,-5000.0,0.00023974,2]
[313864984,1707756647107,-5000.0,0.00023974,2]
[313864996,1707756647116,-5000.0,0.00023974,2]
[313864998,1707756647221,-5000.0,0.00023974,2]
[313865000,1707756647230,-500.0,0.00024,2]
[313865002,1707756647239,-1000.0,0.00024,24]
[313865004,1707756647248,-3918.12632401,0.00024,2]
[313865006,1707756647257,-1000.0,0.00024064,3]
[313865008,1707756647266,-1000.0,0.00024064,3]
[313865010,1707756647275,-1000.0,0.00024064,3]
[313865012,1707756647285,-1000.0,0.00024064,3]
[313865014,1707756647295,-1000.0,0.00024064,3]
[313865016,1707756647305,-566.56,0.00024109,2]
[313865018,1707756647314,-1016.86,0.00024109,2]
[313865020,1707756647323,-1774.88,0.00024109,2]
[313865022,1707756647332,-641.18,0.00024109,2]
[313865024,1707756647341,-500.0,0.00024109,2]
[313865026,1707756647350,-628.66,0.00024109,2]
[313865028,1707756647359,-525.43,0.00024109,2]
[313865030,1707756647369,-586.42,0.00024109,2]
[313865032,1707756647378,-4488.07,0.00024109,2]
[313865034,1707756647388,-3094.92,0.00024109,2]
[313865036,1707756647397,-500.0,0.00024109,2]
[313865038,1707756647407,-595.43,0.00024109,2]
[313865040,1707756647416,-831.65,0.00024109,2]
[313865042,1707756647426,-551.73,0.00024109,2]
[313865044,1707756647436,-1646.93,0.00024109,2]
[313865046,1707756647445,-1087.02,0.00024109,2]
[313865049,1707756647454,-2544.65,0.00024109,2]
[313865050,1707756647463,-755.32,0.00024109,2]
[313865052,1707756647473,-1022.1,0.00024109,2]
[313865054,1707756647482,-200.0,0.00024138,2]
[313865056,1707756647492,-200.0,0.00024138,2]
[313865059,1707756647502,-200.0,0.00024138,2]
[313865060,1707756647511,-200.0,0.00024138,2]
[313865062,1707756647521,-200.0,0.00024138,2]
[313865064,1707756647531,-200.0,0.00024138,2]
[313865066,1707756647540,-200.0,0.00024138,2]
[313865068,1707756647550,-200.84794,0.00024138,2]
[313865070,1707756647559,-151.0,0.00024188,2]
[313865072,1707756647569,-3787.05,0.00024198,2]
[313865074,1707756647579,-2477.88,0.00024198,2]
[313865076,1707756647588,-5340.07,0.00024198,2]
[313865078,1707756647598,-330491.08,0.0002422,3]
[313865080,1707756647607,-151.0,0.0002422,2]
[313865082,1707756647616,-361.398449,0.0002422,2]
[313865084,1707756647625,-361.398449,0.0002422,2]
[313865086,1707756647634,-160.40565764,0.000243,2]
[313865088,1707756647643,-152.0,0.000243,5]
[313865090,1707756647654,-2001.177962,0.000243,2]
[313865092,1707756647663,-425.798031,0.00024333,2]
[313865094,1707756647672,-646.575644,0.00024333,2]
[313865096,1707756647681,-675.543833,0.00024333,2]
[313865098,1707756647690,-456.34773,0.00024333,2]
[313865100,1707756647700,-532.481602,0.00024333,2]
[313865102,1707756647709,-376.557926,0.00024333,2]
[313865103,1707756647718,-629.5517216,0.00024345,2]
[313865105,1707756647727,-391.0,0.00024364,7]
[313865107,1707756647736,-261.94560961,0.0002438,2]
[313865109,1707756647746,-179.19662576,0.00024381,2]
[313865111,1707756647756,-566.56,0.00024383,2]
[313865114,1707756647767,-1016.86,0.00024383,2]
[313865116,1707756647778,-1774.88,0.00024383,2]
[313865117,1707756647787,-641.18,0.00024383,2]
[313865119,1707756647796,-246.969265,0.00024383,2]
[313865122,1707756647806,-628.66,0.00024383,2]
[313865124,1707756647816,-525.43,0.00024383,2]
[313865126,1707756647825,-586.42,0.00024383,2]
[313865127,1707756647834,-4488.07,0.00024383,2]
[313865129,1707756647844,-3094.92,0.00024383,2]
[313865132,1707756647855,-500.0,0.00024383,2]
[313865134,1707756647867,-595.43,0.00024383,2]
[313865136,1707756647876,-831.65,0.00024383,2]
[313865138,1707756647886,-551.73,0.00024383,2]
[313865140,1707756647895,-1646.93,0.00024383,2]
[313865142,1707756647904,-1087.02,0.00024383,2]
[313865143,1707756647913,-2544.65,0.00024383,2]
[313865145,1707756647923,-755.32,0.00024383,2]
[313865147,1707756647932,-1022.1,0.00024383,2]
[313865149,1707756647941,-1500.0,0.000244,2]
[313865151,1707756647950,-1500.0,0.000244,2]
[313865153,1707756647960,-1500.0,0.000244,2]
[313865155,1707756647969,-1500.0,0.000244,2]
[313865157,1707756647978,-1500.0,0.000244,2]
[313865159,1707756647987,-1500.0,0.000244,2]
[313865161,1707756647996,-1500.0,0.000244,2]
[313865163,1707756648006,-1147.8,0.000244,2]
[313865165,1707756648015,-201.08,0.000244,2]
[313865167,1707756648024,-290.1353,0.000244,2]
[313865169,1707756648033,-290.1353,0.000244,2]
[313865171,1707756648042,-503.92363733,0.0002447,5]
[313865173,1707756648052,-3787.05,0.00024472,2]
[313865175,1707756648061,-2477.88,0.00024472,2]
[313865177,1707756648070,-5340.07,0.00024472,2]
[313865179,1707756648079,-3000.0,0.000245,10]
[313865181,1707756648088,-462.418292,0.00024506,2]
[313865183,1707756648097,-208.552427,0.00024506,2]
[313865185,1707756648107,-151.0,0.00024574,2]
[313865187,1707756648116,-371.442476,0.00024581,2]
[313865189,1707756648125,-245.264187,0.00024581,2]
[313865191,1707756648134,-165.871897,0.00024607,2]
[313865193,1707756648143,-165.871897,0.00024607,2]
[313865195,1707756648152,-178.383507,0.0002462,2]
[313865197,1707756648161,-213.507435,0.0002462,2]
[313865199,1707756648170,-596.149943,0.0002462,2]
[313865201,1707756648179,-265.514089,0.0002462,2]
[313865203,1707756648188,-408.073419,0.0002462,2]
[313865205,1707756648197,-425.798031,0.00024637,2]
[313865207,1707756648206,-646.575644,0.00024637,2]
[313865209,1707756648215,-675.543833,0.00024637,2]
[313865211,1707756648224,-456.34773,0.00024637,2]
[313865213,1707756648233,-532.481602,0.00024637,2]
[313865215,1707756648242,-376.557926,0.00024637,2]
[313865217,1707756648251,-566.56,0.00024657,2]
[313865219,1707756648260,-1016.86,0.00024657,2]
[313865221,1707756648269,-390.0,0.00024657,2]
[313865223,1707756648278,-390.0,0.00024657,2]
[313865225,1707756648287,-390.0,0.00024657,2]
[313865227,1707756648297,-390.0,0.00024657,2]
[313865229,1707756648305,-390.0,0.00024657,2]
[313865231,1707756648315,-390.0,0.00024657,2]
[313865233,1707756648324,-390.0,0.00024657,2]
[313865235,1707756648333,-359.35303635,0.00024657,2]
[313865237,1707756648341,-1774.88,0.00024657,2]
[313865239,1707756648351,-641.18,0.00024657,2]
[313865241,1707756648360,-628.66,0.00024657,2]
[313865243,1707756648368,-525.43,0.00024657,2]
[313865245,1707756648377,-586.42,0.00024657,2]
[313865247,1707756648386,-4488.07,0.00024657,2]
[313865249,1707756648396,-3094.92,0.00024657,2]
[313865251,1707756648405,-500.0,0.00024657,2]
[313865253,1707756648414,-595.43,0.00024657,2]
[313865255,1707756648424,-831.65,0.00024657,2]
[313865257,1707756648433,-551.73,0.00024657,2]
[313865259,1707756648442,-1646.93,0.00024657,2]
[313865261,1707756648451,-1087.02,0.00024657,2]
[313865263,1707756648460,-2544.65,0.00024657,2]
[313865265,1707756648469,-755.32,0.00024657,2]
[313865267,1707756648478,-1022.1,0.00024657,2]
[313865269,1707756648487,-400.0,0.00024658,2]
[313865271,1707756648496,-380.0,0.00024658,2]
[313865273,1707756648505,-198.36423,0.00024662,2]
[313865275,1707756648514,-204.386823,0.00024662,2]
[313865277,1707756648524,-390.343212,0.00024662,2]
[313865279,1707756648533,-267.759413,0.00024662,2]
[313865281,1707756648543,-396.0,0.000247,11]
[313865282,1707756648553,-3787.05,0.00024746,2]
[313865284,1707756648564,-2477.88,0.00024746,2]
[313865286,1707756648573,-5340.07,0.00024746,2]
[313865289,1707756648582,-462.418292,0.00024808,2]
[313865290,1707756648591,-208.552427,0.00024808,2]
[313865292,1707756648601,-566.56,0.00024931,2]
[313865294,1707756648610,-1016.86,0.00024931,2]
[313865296,1707756648619,-1774.88,0.00024931,2]
[313865298,1707756648628,-641.18,0.00024931,2]
[313865301,1707756648638,-628.66,0.00024931,2]
[313865303,1707756648647,-525.43,0.00024931,2]
[313865305,1707756648656,-586.42,0.00024931,2]
[313865307,1707756648666,-4488.07,0.00024931,2]
[313865309,1707756648675,-3094.92,0.00024931,2]
[313865310,1707756648685,-500.0,0.00024931,2]
[313865312,1707756648694,-595.43,0.00024931,2]
[313865315,1707756648704,-831.65,0.00024931,2]
[313865317,1707756648713,-551.73,0.00024931,2]
[313865319,1707756648722,-1646.93,0.00024931,2]
[313865321,1707756648731,-1087.02,0.00024931,2]
[313865323,1707756648740,-2544.65,0.00024931,2]
[313865324,1707756648750,-755.32,0.00024931,2]
[313865327,1707756648762,-1022.1,0.00024931,2]
[313865328,1707756648771,-425.798031,0.00024941,2]
[313865330,1707756648781,-646.575644,0.00024941,2]
[313865332,1707756648791,-675.543833,0.00024941,2]
[313865334,1707756648801,-456.34773,0.00024941,2]
[313865336,1707756648810,-532.481602,0.00024941,2]
[313865338,1707756648819,-376.557926,0.00024941,2]
[313865340,1707756648828,-46555.58585488,0.00024956,2]
[313865382,1707756649269,-500.0,0.00019178,2]
[313865384,1707756649278,-409.40121779,0.0001944,2]
[313865386,1707756649288,-3444.41414512,0.00024956,2]
[313865389,1707756649298,-4671.53658313,0.00024956,2]
[313866376,1707756934268,174.381098,0.00027397,120]
[313866386,1707757210807,4713.5022921,0.000181,4]
[313866425,1707757578063,-24900.0,0.00017638,2]
[313866426,1707757578089,-154.81422293,0.00018093,3]
[313866427,1707757578114,-1291.59702042,0.00018093,2]
[313866428,1707757578141,-406.788136,0.00018094,2]
[313866429,1707757578167,-154.81422293,0.000181,2]
[313866430,1707757578193,-250.0,0.00018896,2]
[313866431,1707757578217,-500.0,0.00019178,2]
[313866432,1707757578241,-500.0,0.00019178,2]
[313866433,1707757578266,-500.0,0.00019178,2]
[313866434,1707757578290,-500.0,0.00019178,2]
[313866435,1707757578319,-500.0,0.00019178,2]
[313866436,1707757578344,-500.0,0.00019178,2]
[313866437,1707757578370,-500.0,0.00019178,2]
[313866438,1707757578396,-500.0,0.00019178,2]
[313866439,1707757578420,-500.0,0.00019178,2]
[313866440,1707757578446,-500.0,0.00019178,2]
[313866441,1707757578471,-500.0,0.00019178,2]
[313866442,1707757578498,-166.666666,0.00019178,2]
[313866443,1707757578522,-343.73527458,0.00019452,2]
[313866444,1707757578547,-500.0,0.00019452,2]
[313866445,1707757578572,-500.0,0.00019452,2]
[313866446,1707757578608,-197.0,0.00019726,2]
[313866447,1707757578638,-166.666666,0.00019739,2]
[313866448,1707757578802,-200.0,0.00019964,2]
[313866449,1707757578863,-158.72303613,0.00020279,2]
[313866450,1707757578892,-500.0,0.00020279,2]
[313866451,1707757578920,-500.0,0.00020279,2]
[313866452,1707757578945,-500.0,0.00020279,2]
[313866453,1707757578971,-500.0,0.00020279,2]
[313866454,1707757578995,-166.666666,0.000203,2]
[313866455,1707757579023,-551.08125248,0.00020553,2]
[313866456,1707757579048,-500.0,0.00020553,2]
[313866457,1707757579075,-500.0,0.00020553,2]
[313866458,1707757579102,-1420.15,0.00020826,2]
[313866459,1707757579129,-929.2,0.00020826,2]
[313866460,1707757579155,-2002.53,0.00020826,2]
[313866461,1707757579180,-191.09157405,0.00020827,2]
[313866462,1707757579205,-500.0,0.00020827,2]
[313866463,1707757579229,-166.666666,0.00020861,2]
[313866464,1707757579254,-230.96610906,0.000209,2]
[313866465,1707757579278,-500.0,0.00020909,2]
[313866466,1707757579304,-500.0,0.00020909,2]
[313866467,1707757579330,-500.0,0.00020909,2]
[313866468,1707757579356,-500.0,0.00020909,2]
[313866469,1707757579382,-500.0,0.00020909,2]
[313866470,1707757579408,-500.0,0.00020909,2]
[313866471,1707757579432,-500.0,0.00020909,2]
[313866472,1707757579456,-500.0,0.00020909,2]
[313866473,1707757579483,-500.0,0.00020909,2]
[313866474,1707757579508,-500.0,0.00020909,2]
[313866475,1707757579534,-500.0,0.00020909,2]
[313866476,1707757590592,-500.0,0.00020279,2]
[313866477,1707757590617,-500.0,0.00020553,2]
[313866478,1707757590643,-500.0,0.00020827,2]
[313866479,1707757590669,-500.0,0.00020909,2]
[313866480,1707757590694,-500.0,0.0002091,2]
[313866481,1707757590719,-500.0,0.0002091,2]
[313866482,1707757590744,-500.0,0.0002091,2]
[313866483,1707757590783,-500.0,0.0002091,2]
[313866484,1707757590809,-5058.92,0.0002097,3]
[313866485,1707757590834,-11549.31520875,0.00020977,2]
[313866486,1707757590859,-8892.63,0.0002099,3]
[313866487,1707757590884,-5493.89807813,0.00021,2]
[313866488,1707757590909,-18188.53209892,0.00021,2]
[313866489,1707757590935,-195.02426221,0.00021,2]
[313866490,1707757590960,-9895.79446713,0.00021,2]
[313866491,1707757590985,-1000.0,0.00021,21]
[313866492,1707757591012,-1420.15,0.000211,2]
[313866493,1707757591040,-929.2,0.000211,2]
[313866494,1707757591066,-2002.53,0.000211,2]
[313866495,1707757591093,-544.37164681,0.00021101,2]
[313866496,1707757591119,-533.94974377,0.00021101,2]
[313866497,1707757591144,-230.96610903,0.0002115,2]
[313866498,1707757591170,-7410.53,0.00021173,3]
[313866499,1707757591195,-500.0,0.00021183,2]
[313866500,1707757591221,-500.0,0.00021183,2]
[313866501,1707757591247,-500.0,0.00021183,2]
[313866502,1707757591275,-500.0,0.00021183,2]
[313866503,1707757591302,-500.0,0.00021183,2]
[313866504,1707757591327,-500.0,0.00021183,2]
[313866505,1707757591353,-500.0,0.00021183,2]
[313866506,1707757591381,-500.0,0.00021183,2]
[313866507,1707757591407,-500.0,0.00021183,2]
[313866508,1707757591433,-500.0,0.00021183,2]
[313866509,1707757591460,-152.99483862,0.00021183,2]
[313866510,1707757591484,-500.0,0.00021184,2]
[313866511,1707757591510,-603.47325357,0.00021184,2]
[313866512,1707757591534,-500.0,0.00021184,2]
[313866513,1707757591560,-500.0,0.00021184,2]
[313866514,1707757591586,-500.0,0.00021263,2]
[313866515,1707757591611,-500.0,0.00021263,2]
[313866516,1707757591638,-500.0,0.00021263,2]
[313866517,1707757591664,-500.0,0.00021263,2]
[313866518,1707757591689,-374.22270704,0.00021263,2]
[313866519,1707757591718,-184.09355382,0.00021263,2]
[313866520,1707757591750,-61458.28628516,0.00021264,2]
[313866521,1707757591783,-10274.06716263,0.00021264,2]
[313866522,1707757591815,-5913.67310353,0.00021279,2]
[313866523,1707757591987,-1420.15,0.00021374,2]
[313866524,1707757592023,-929.2,0.00021374,2]
[313866525,1707757592055,-2002.53,0.00021374,2]
[313866526,1707757592086,-230.96610903,0.000214,2]
[313866527,1707757592117,-250.0,0.00021402,2]
[313866528,1707757592154,-70578.56830444,0.00021403,2]
[313866529,1707757592185,-742.12218474,0.00021403,2]
[313866530,1707757592216,-493.33876879,0.00021403,2]
[313866531,1707757592247,-217.52749056,0.00021403,2]
[313866532,1707757592280,-1810.03214799,0.00021403,2]
[313866533,1707757592308,-166.666666,0.00021422,2]
[313866534,1707757592338,-172.92,0.00021457,2]
[313866535,1707757592367,-500.0,0.00021457,2]
[313866536,1707757592400,-500.0,0.00021457,2]
[313866537,1707757592428,-500.0,0.00021457,2]
[313866538,1707757592456,-510.79,0.00021457,2]
[313866539,1707757592483,-282.57262693,0.00021457,2]
[313866540,1707757592510,-257.42160729,0.00021457,2]
[313866541,1707757592538,-500.0,0.00021457,2]
[313866542,1707757592567,-500.0,0.00021457,2]
[313866543,1707757592593,-500.0,0.00021458,2]
[313866544,1707757592618,-500.0,0.00021458,2]
[313866545,1707757592646,-1420.15,0.00021648,2]
[313866546,1707757592673,-929.2,0.00021648,2]
[313866547,1707757592699,-2002.53,0.00021648,2]
[313866548,1707757592724,-230.96610903,0.0002165,2]
[313866549,1707757592750,-337.0,0.000217,9]
[313866550,1707757592775,-559.77511451,0.00021731,2]
[313866551,1707757592801,-500.0,0.00021731,2]
[313866552,1707757592827,-500.0,0.00021731,2]
[313866553,1707757592852,-500.0,0.00021731,2]
[313866554,1707757592879,-500.0,0.00021731,2]
[313866555,1707757592906,-163.38735851,0.00021732,2]
[313866556,1707757592932,-500.0,0.00021732,2]
[313866557,1707757592957,-230.96610903,0.000219,2]
[313866558,1707757592984,-1420.15,0.00021922,2]
[313866559,1707757593011,-929.2,0.00021922,2]
[313866560,1707757593038,-2002.53,0.00021922,2]
[313866561,1707757593064,-280.0,0.00021961,7]
[313866562,1707757593088,-247.38920084,0.00022,4]
[313866563,1707757593114,-820.79970176,0.00022,2]
[313866564,1707757593142,-627.13120559,0.00022,2]
[313866565,1707757593166,-154.84515485,0.00022,2]
[313866566,1707757593191,-11888.52381892,0.00022,2]
[313866567,1707757593216,-1000.0,0.00022,22]
[313866568,1707757593328,6175.44,0.00021163,3]
[313866569,1707757593359,154.82968734,0.00018889,3]
[313866570,1707757594028,157.51497675,0.000181,2]
[313866571,1707757595089,154.82968734,0.00020909,2]
[313866572,1707757595822,1291.59702042,0.00021457,2]
[313866573,1707757608454,500.0,0.00020826,2]
[313866574,1707757610220,152.1487591,0.00020784,2]
[313866575,1707757610400,525.43,0.00020826,2]
[313866576,1707757612994,154.82968734,0.00021677,4]
[313866577,1707757613069,253.25522053,0.00020909,2]
[313866578,1707757615238,586.42,0.00020826,2]
[313866583,1707757633544,-154.82968734,0.00020714,4]
[313866584,1707757633569,-203.394068,0.00021653,2]
[313866585,1707757633595,-500.0,0.00022005,2]
[313866586,1707757633620,-500.0,0.00022005,2]
[313866587,1707757633812,-500.0,0.00022005,2]
[313866588,1707757633839,-500.0,0.00022005,2]
[313866589,1707757633864,-174.05412757,0.00022006,2]
[313866590,1707757633889,-500.0,0.00022087,2]
[313866591,1707757633916,-1420.15,0.00022196,2]
[313866592,1707757633942,-929.2,0.00022196,2]
[313866593,1707757633967,-2002.53,0.00022196,2]
[313866594,1707757633992,-576.25123973,0.00022264,2]
[313866595,1707757634019,-500.0,0.00022279,2]
[313866596,1707757634047,-500.0,0.00022279,2]
[313866597,1707757634074,-500.0,0.00022279,2]
[313866598,1707757634102,-500.0,0.00022279,2]
[313866599,1707757634127,-981.1601613,0.00022459,2]
[313866600,1707757634152,-274.95719598,0.00022459,2]
[313866601,1707757634179,-1420.15,0.0002247,2]